[Event "*** SCC Grand Prix: Titled Tuesday Blitz"]
[Site "Chess.com"]
[Date "2020.06.09"]
[Round "4"]
[White "imdvb6307"]
[Black "AlexSuv"]
[Result "1/2-1/2"]
[WhiteElo "2388"]
[BlackElo "2683"]
[TimeControl "180+1"]
[EndTime "9:41:02 PDT"]
[Termination "Game drawn by repetition"]

1. e4 {[%clk 0:03:00]} 1... c5 {[%clk 0:02:59.2]} 2. Nf3 {[%clk 0:02:59]} 2...
e6 {[%clk 0:02:59.6]} 3. c4 {[%clk 0:02:57.6]} 3... Nc6 {[%clk 0:02:58.9]} 4.
Nc3 {[%clk 0:02:56.6]} 4... Nge7 {[%clk 0:02:46.7]} 5. Be2 {[%clk 0:02:55.9]}
5... Nd4 {[%clk 0:02:40.8]} 6. O-O {[%clk 0:02:41.3]} 6... Nec6 {[%clk
0:02:40.6]} 7. d3 {[%clk 0:02:39.4]} 7... Be7 {[%clk 0:02:40.1]} 8. Ne1 {[%clk
0:02:19.8]} 8... O-O {[%clk 0:02:38.4]} 9. f4 {[%clk 0:02:16.1]} 9... a6 {[%clk
0:02:36]} 10. e5 {[%clk 0:01:55.8]} 10... f6 {[%clk 0:02:31.3]} 11. exf6 {[%clk
0:01:54.9]} 11... Bxf6 {[%clk 0:02:32.2]} 12. Ne4 {[%clk 0:01:53.7]} 12... Be7
{[%clk 0:02:30]} 13. Nf3 {[%clk 0:01:48.2]} 13... b5 {[%clk 0:02:21.5]} 14. b3
{[%clk 0:01:42.2]} 14... h6 {[%clk 0:02:09.8]} 15. Bb2 {[%clk 0:01:39]} 15...
Rb8 {[%clk 0:02:06.6]} 16. Nfd2 {[%clk 0:00:55.8]} 16... d5 {[%clk 0:01:51.9]}
17. Ng3 {[%clk 0:00:55.1]} 17... Bf6 {[%clk 0:01:48.1]} 18. Rb1 {[%clk
0:00:52.3]} 18... Bd7 {[%clk 0:01:18.4]} 19. Bg4 {[%clk 0:00:51.4]} 19... bxc4
{[%clk 0:01:05.8]} 20. dxc4 {[%clk 0:00:48.5]} 20... Be8 {[%clk 0:00:45.9]} 21.
Bh5 {[%clk 0:00:45.5]} 21... a5 {[%clk 0:00:41.4]} 22. Bxe8 {[%clk 0:00:43.8]}
22... Qxe8 {[%clk 0:00:42.3]} 23. Nh5 {[%clk 0:00:43.1]} 23... Qg6 {[%clk
0:00:40.7]} 24. Nxf6+ {[%clk 0:00:39.2]} 24... Rxf6 {[%clk 0:00:41.6]} 25. g3
{[%clk 0:00:34]} 25... Rf7 {[%clk 0:00:35.7]} 26. Nf3 {[%clk 0:00:31]} 26...
Nxf3+ {[%clk 0:00:34.8]} 27. Qxf3 {[%clk 0:00:28.9]} 27... Rd8 {[%clk
0:00:34.2]} 28. cxd5 {[%clk 0:00:26.5]} 28... exd5 {[%clk 0:00:33.7]} 29. Rbd1
{[%clk 0:00:26.5]} 29... Rfd7 {[%clk 0:00:28.2]} 30. Qc3 {[%clk 0:00:20.5]}
30... Qd6 {[%clk 0:00:12.5]} 31. Rc1 {[%clk 0:00:19.8]} 31... d4 {[%clk
0:00:11]} 32. Qxc5 {[%clk 0:00:18.9]} 32... Qxc5 {[%clk 0:00:11.8]} 33. Rxc5
{[%clk 0:00:18.2]} 33... Nb4 {[%clk 0:00:12.7]} 34. Rd1 {[%clk 0:00:17.9]} 34...
Nxa2 {[%clk 0:00:09]} 35. Rxa5 {[%clk 0:00:17.8]} 35... Nc3 {[%clk 0:00:08.8]}
36. Bxc3 {[%clk 0:00:13.7]} 36... dxc3 {[%clk 0:00:09.7]} 37. Rxd7 {[%clk
0:00:12.7]} 37... Rxd7 {[%clk 0:00:10.6]} 38. Rc5 {[%clk 0:00:12.6]} 38... Rd1+
{[%clk 0:00:10.5]} 39. Kg2 {[%clk 0:00:12.8]} 39... Rd2+ {[%clk 0:00:10.4]} 40.
Kf3 {[%clk 0:00:12.2]} 40... c2 {[%clk 0:00:09.2]} 41. b4 {[%clk 0:00:12.3]}
41... Rxh2 {[%clk 0:00:08.6]} 42. b5 {[%clk 0:00:11.6]} 42... Rh5 {[%clk
0:00:06]} 43. Rc8+ {[%clk 0:00:10.6]} 43... Kh7 {[%clk 0:00:05.3]} 44. b6 {[%clk
0:00:10.6]} 44... Rb5 {[%clk 0:00:04.8]} 45. Rxc2 {[%clk 0:00:10.2]} 45... Rxb6
{[%clk 0:00:04.9]} 46. Rc3 {[%clk 0:00:08.1]} 46... Rd6 {[%clk 0:00:04.6]} 47.
g4 {[%clk 0:00:07.8]} 47... Rf6 {[%clk 0:00:05]} 48. Kg3 {[%clk 0:00:06]} 48...
Rf7 {[%clk 0:00:05.3]} 49. f5 {[%clk 0:00:06.2]} 49... Re7 {[%clk 0:00:06]} 50.
Kh4 {[%clk 0:00:06.1]} 50... Rd7 {[%clk 0:00:06.3]} 51. Kg3 {[%clk 0:00:06.2]}
51... Rd1 {[%clk 0:00:06.7]} 52. Kh3 {[%clk 0:00:05.9]} 52... Rh1+ {[%clk
0:00:06.6]} 53. Kg2 {[%clk 0:00:05.9]} 53... Rd1 {[%clk 0:00:06.7]} 54. Rc7
{[%clk 0:00:05.2]} 54... Rd2+ {[%clk 0:00:07]} 55. Kg3 {[%clk 0:00:05.2]} 55...
Rd6 {[%clk 0:00:07.9]} 56. Kf4 {[%clk 0:00:04.3]} 56... Kg8 {[%clk 0:00:08.1]}
57. Ke5 {[%clk 0:00:04.3]} 57... Ra6 {[%clk 0:00:08.2]} 58. Rc8+ {[%clk
0:00:03.2]} 58... Kh7 {[%clk 0:00:07.9]} 59. Rc4 {[%clk 0:00:02.9]} 59... Kg8
{[%clk 0:00:07.6]} 60. Kf4 {[%clk 0:00:03]} 60... Kh7 {[%clk 0:00:07.9]} 61. Ke4
{[%clk 0:00:02.7]} 61... Ra1 {[%clk 0:00:07.9]} 62. Kf4 {[%clk 0:00:02.1]} 62...
Rf1+ {[%clk 0:00:07.7]} 63. Kg3 {[%clk 0:00:02.1]} 63... Rg1+ {[%clk 0:00:07.9]}
64. Kf3 {[%clk 0:00:02.4]} 64... Rf1+ {[%clk 0:00:07.7]} 65. Kg2 {[%clk
0:00:02.5]} 65... Rd1 {[%clk 0:00:07.6]} 66. Kg3 {[%clk 0:00:02.6]} 66... Rd3+
{[%clk 0:00:07.5]} 67. Kf4 {[%clk 0:00:02.8]} 67... Rd7 {[%clk 0:00:07.4]} 68.
Ke4 {[%clk 0:00:02.9]} 68... Re7+ {[%clk 0:00:07.6]} 69. Kf4 {[%clk 0:00:03.2]}
69... Rd7 {[%clk 0:00:07.9]} 70. Kf3 {[%clk 0:00:03.3]} 70... Re7 {[%clk
0:00:08.2]} 71. Kf4 {[%clk 0:00:03.5]} 71... Rd7 {[%clk 0:00:08.5]} 1/2-1/2

[Event "*** SCC Grand Prix: Titled Tuesday Blitz"]
[Site "Chess.com"]
[Date "2020.06.09"]
[Round "4"]
[White "kran900"]
[Black "IAgrest"]
[Result "1-0"]
[WhiteElo "2448"]
[BlackElo "2236"]
[TimeControl "180+1"]
[EndTime "9:41:06 PDT"]
[Termination "kran900 won on time"]

1. e4 {[%clk 0:02:36.9]} 1... e5 {[%clk 0:02:59.7]} 2. Nf3 {[%clk 0:02:36.3]}
2... Nc6 {[%clk 0:03:00.2]} 3. Bc4 {[%clk 0:02:34.6]} 3... Nf6 {[%clk
0:02:59.7]} 4. Ng5 {[%clk 0:02:31.7]} 4... d5 {[%clk 0:02:59.1]} 5. exd5 {[%clk
0:02:32.3]} 5... Na5 {[%clk 0:02:59]} 6. Bb5+ {[%clk 0:02:32.5]} 6... Bd7 {[%clk
0:02:59.1]} 7. Be2 {[%clk 0:02:22.2]} 7... Nxd5 {[%clk 0:02:55.4]} 8. d3 {[%clk
0:02:17.9]} 8... Be7 {[%clk 0:02:49.8]} 9. Nf3 {[%clk 0:02:14.6]} 9... Nc6
{[%clk 0:02:42.5]} 10. O-O {[%clk 0:02:13.4]} 10... O-O {[%clk 0:02:41.9]} 11.
Nc3 {[%clk 0:02:13.4]} 11... Nf4 {[%clk 0:02:36.7]} 12. Nxe5 {[%clk 0:02:04.9]}
12... Nxe2+ {[%clk 0:02:27.2]} 13. Qxe2 {[%clk 0:02:03.4]} 13... Nxe5 {[%clk
0:02:26]} 14. Qxe5 {[%clk 0:02:03.2]} 14... Bd6 {[%clk 0:02:26.1]} 15. Qh5
{[%clk 0:02:02.9]} 15... Re8 {[%clk 0:02:12.7]} 16. Bg5 {[%clk 0:01:49.3]} 16...
f6 {[%clk 0:02:10.3]} 17. Bd2 {[%clk 0:01:48.3]} 17... Re5 {[%clk 0:02:04.4]}
18. Qh4 {[%clk 0:01:47.9]} 18... Qe8 {[%clk 0:02:00]} 19. Rae1 {[%clk
0:01:46.3]} 19... Qg6 {[%clk 0:01:55.3]} 20. Rxe5 {[%clk 0:01:43.6]} 20... Bxe5
{[%clk 0:01:55.1]} 21. Bf4 {[%clk 0:01:32]} 21... Bc6 {[%clk 0:01:47.4]} 22. Bg3
{[%clk 0:01:20.8]} 22... f5 {[%clk 0:01:29.9]} 23. Qc4+ {[%clk 0:01:20.5]} 23...
Kh8 {[%clk 0:01:26.8]} 24. f4 {[%clk 0:01:20.3]} 24... Bf6 {[%clk 0:01:13.5]}
25. Nd5 {[%clk 0:01:02.6]} 25... Bxb2 {[%clk 0:01:05.6]} 26. Nb4 {[%clk
0:00:49.4]} 26... Be8 {[%clk 0:00:42.3]} 27. c3 {[%clk 0:00:38.9]} 27... Ba3
{[%clk 0:00:36]} 28. Qxc7 {[%clk 0:00:34.4]} 28... Bxb4 {[%clk 0:00:25.2]} 29.
cxb4 {[%clk 0:00:33.7]} 29... Bc6 {[%clk 0:00:23.8]} 30. Re1 {[%clk 0:00:30.3]}
30... h6 {[%clk 0:00:21.6]} 31. d4 {[%clk 0:00:19.7]} 31... Re8 {[%clk
0:00:20.7]} 32. Re5 {[%clk 0:00:18.5]} 32... Rxe5 {[%clk 0:00:15.9]} 33. Qxe5
{[%clk 0:00:18.5]} 33... Qf7 {[%clk 0:00:15.3]} 34. b5 {[%clk 0:00:18]} 34...
Be8 {[%clk 0:00:13.7]} 35. d5 {[%clk 0:00:18]} 35... a6 {[%clk 0:00:13.4]} 36.
Bf2 {[%clk 0:00:16.4]} 36... Bxb5 {[%clk 0:00:12.6]} 37. Bd4 {[%clk 0:00:16]}
37... Bc4 {[%clk 0:00:09.3]} 38. d6 {[%clk 0:00:14.1]} 38... Be6 {[%clk
0:00:09.4]} 39. a3 {[%clk 0:00:13.9]} 39... Kh7 {[%clk 0:00:09.3]} 40. h3 {[%clk
0:00:13.3]} 40... Bd7 {[%clk 0:00:09.4]} 41. Qc5 {[%clk 0:00:12.3]} 41... Bc6
{[%clk 0:00:09.3]} 42. Kh2 {[%clk 0:00:12.4]} 42... Qe6 {[%clk 0:00:08.6]} 43.
Qe5 {[%clk 0:00:12.5]} 43... Qxe5 {[%clk 0:00:08.3]} 44. fxe5 {[%clk 0:00:12.1]}
44... Kg8 {[%clk 0:00:08.2]} 45. g4 {[%clk 0:00:12.4]} 45... fxg4 {[%clk
0:00:07.5]} 46. hxg4 {[%clk 0:00:12.6]} 46... Kf7 {[%clk 0:00:08.1]} 47. Kg3
{[%clk 0:00:13.3]} 47... Ke6 {[%clk 0:00:08.5]} 48. Kf4 {[%clk 0:00:14.2]} 48...
Bd7 {[%clk 0:00:08.6]} 49. g5 {[%clk 0:00:14]} 49... hxg5+ {[%clk 0:00:05.8]}
50. Kxg5 {[%clk 0:00:14.9]} 50... Be8 {[%clk 0:00:06.2]} 51. Bc3 {[%clk
0:00:15.2]} 51... Bf7 {[%clk 0:00:06.4]} 52. Bd4 {[%clk 0:00:15]} 52... Be8
{[%clk 0:00:06.7]} 53. Bb2 {[%clk 0:00:15.6]} 53... Bf7 {[%clk 0:00:07]} 54. Kf4
{[%clk 0:00:16.3]} 54... Be8 {[%clk 0:00:07.2]} 55. Ke3 {[%clk 0:00:16.9]} 55...
Bf7 {[%clk 0:00:07.5]} 56. Kd4 {[%clk 0:00:17.5]} 56... b6 {[%clk 0:00:06.6]}
57. Ke3 {[%clk 0:00:17.5]} 57... Be8 {[%clk 0:00:05.1]} 58. Kf4 {[%clk
0:00:18.1]} 58... Bf7 {[%clk 0:00:04.4]} 59. Bd4 {[%clk 0:00:18.6]} 59... b5
{[%clk 0:00:04.1]} 60. Bc5 {[%clk 0:00:18.3]} 60... Be8 {[%clk 0:00:03.9]} 61.
Bb6 {[%clk 0:00:18.6]} 61... Bc6 {[%clk 0:00:03.4]} 62. Bd8 {[%clk 0:00:18.7]}
62... Be8 {[%clk 0:00:03.2]} 63. Be7 {[%clk 0:00:18.9]} 63... Bc6 {[%clk
0:00:03.2]} 64. Bf8 {[%clk 0:00:19.1]} 64... g6 {[%clk 0:00:02.3]} 65. Be7
{[%clk 0:00:19.1]} 65... Be8 {[%clk 0:00:02]} 66. Bd8 {[%clk 0:00:19.5]} 66...
Bc6 {[%clk 0:00:02]} 67. Ba5 {[%clk 0:00:19.8]} 67... Be8 {[%clk 0:00:01.4]} 68.
Bc3 {[%clk 0:00:20.4]} 68... Bf7 {[%clk 0:00:01.6]} 69. Kg5 {[%clk 0:00:20.7]}
69... Be8 {[%clk 0:00:02.1]} 70. Kh6 {[%clk 0:00:21]} 70... Bf7 {[%clk
0:00:02.2]} 71. Kg7 {[%clk 0:00:21.4]} 71... Be8 {[%clk 0:00:02.7]} 72. Kf8
{[%clk 0:00:21.8]} 72... Bc6 {[%clk 0:00:03]} 73. Kg7 {[%clk 0:00:22.1]} 73...
Be8 {[%clk 0:00:03]} 74. Ba5 {[%clk 0:00:21.6]} 74... Kd7 {[%clk 0:00:02.5]} 75.
Kf6 {[%clk 0:00:21.5]} 75... Kc6 {[%clk 0:00:01.3]} 76. Bb4 {[%clk 0:00:20.9]}
1-0

[Event "*** SCC Grand Prix: Titled Tuesday Blitz"]
[Site "Chess.com"]
[Date "2020.06.09"]
[Round "4"]
[White "dretch"]
[Black "GM_dmitrij"]
[Result "1-0"]
[WhiteElo "2804"]
[BlackElo "2962"]
[TimeControl "180+1"]
[EndTime "9:41:12 PDT"]
[Termination "dretch won by checkmate"]

1. d4 {[%clk 0:03:00.9]} 1... Nf6 {[%clk 0:02:59.9]} 2. c4 {[%clk 0:03:00.8]}
2... e6 {[%clk 0:03:00.5]} 3. Nc3 {[%clk 0:03:00.1]} 3... Bb4 {[%clk 0:03:00.2]}
4. Qc2 {[%clk 0:02:59.8]} 4... b6 {[%clk 0:03:00.5]} 5. e4 {[%clk 0:02:57.8]}
5... c5 {[%clk 0:03:00.8]} 6. a3 {[%clk 0:02:55.9]} 6... Bxc3+ {[%clk
0:02:57.4]} 7. bxc3 {[%clk 0:02:56.2]} 7... Bb7 {[%clk 0:02:55.5]} 8. d5 {[%clk
0:02:54.2]} 8... d6 {[%clk 0:02:42.6]} 9. Bd3 {[%clk 0:02:47.1]} 9... O-O {[%clk
0:02:19]} 10. Ne2 {[%clk 0:02:38.7]} 10... Nbd7 {[%clk 0:02:18.5]} 11. f4 {[%clk
0:02:35.6]} 11... b5 {[%clk 0:02:04.2]} 12. cxb5 {[%clk 0:02:12.5]} 12... exd5
{[%clk 0:02:02.7]} 13. exd5 {[%clk 0:02:13.1]} 13... Bxd5 {[%clk 0:02:00.1]} 14.
c4 {[%clk 0:02:13.6]} 14... Bb7 {[%clk 0:01:35.5]} 15. O-O {[%clk 0:02:10]}
15... Re8 {[%clk 0:01:35.1]} 16. Ng3 {[%clk 0:02:04.2]} 16... d5 {[%clk
0:01:31.7]} 17. Nf5 {[%clk 0:01:59.7]} 17... Nf8 {[%clk 0:01:28]} 18. cxd5
{[%clk 0:01:51.4]} 18... Qxd5 {[%clk 0:01:23.2]} 19. Bc4 {[%clk 0:01:45.5]}
19... Qe4 {[%clk 0:01:23.4]} 20. Qxe4 {[%clk 0:01:42.6]} 20... Nxe4 {[%clk
0:01:24.3]} 21. Re1 {[%clk 0:01:07.1]} 21... Ne6 {[%clk 0:01:16.7]} 22. Be3
{[%clk 0:00:58.2]} 22... g6 {[%clk 0:01:11.8]} 23. Nh6+ {[%clk 0:00:58.2]} 23...
Kg7 {[%clk 0:01:11.9]} 24. f5 {[%clk 0:00:58.8]} 24... N6g5 {[%clk 0:01:01.6]}
25. fxg6 {[%clk 0:00:40.8]} 25... hxg6 {[%clk 0:00:57.7]} 26. Ng4 {[%clk
0:00:40.3]} 26... f5 {[%clk 0:00:56.7]} 27. Ne5 {[%clk 0:00:38.2]} 27... Rad8
{[%clk 0:00:38.4]} 28. Nc6 {[%clk 0:00:38.1]} 28... Bxc6 {[%clk 0:00:30.1]} 29.
bxc6 {[%clk 0:00:37.9]} 29... Rc8 {[%clk 0:00:31]} 30. Ba6 {[%clk 0:00:16.4]}
30... Rxc6 {[%clk 0:00:23.6]} 31. Bb5 {[%clk 0:00:16.1]} 31... Rec8 {[%clk
0:00:24.2]} 32. Bxc6 {[%clk 0:00:15.5]} 32... Rxc6 {[%clk 0:00:25.1]} 33. Bxg5
{[%clk 0:00:13.5]} 33... Nxg5 {[%clk 0:00:26]} 34. Re7+ {[%clk 0:00:13.7]} 34...
Kf6 {[%clk 0:00:26.4]} 35. Rxa7 {[%clk 0:00:14.6]} 35... c4 {[%clk 0:00:27]} 36.
Rc1 {[%clk 0:00:13.6]} 36... c3 {[%clk 0:00:26.8]} 37. Rb7 {[%clk 0:00:12.6]}
37... Ne4 {[%clk 0:00:26.7]} 38. Rb4 {[%clk 0:00:11.3]} 38... Ke5 {[%clk
0:00:23.9]} 39. Kf1 {[%clk 0:00:11.7]} 39... Rd6 {[%clk 0:00:22]} 40. Ke1 {[%clk
0:00:10.1]} 40... Rd3 {[%clk 0:00:18.4]} 41. Rc2 {[%clk 0:00:08.9]} 41... Re3+
{[%clk 0:00:17]} 42. Kd1 {[%clk 0:00:08]} 42... Rd3+ {[%clk 0:00:16.9]} 43. Kc1
{[%clk 0:00:08.2]} 43... Re3 {[%clk 0:00:17.4]} 44. Kb1 {[%clk 0:00:07.7]} 44...
Re1+ {[%clk 0:00:17]} 45. Ka2 {[%clk 0:00:07.8]} 45... Rh1 {[%clk 0:00:13.9]}
46. h3 {[%clk 0:00:06.6]} 46... Rd1 {[%clk 0:00:13.6]} 47. a4 {[%clk 0:00:06.7]}
47... Rd5 {[%clk 0:00:12.4]} 48. Rb5 {[%clk 0:00:05.6]} 48... Rxb5 {[%clk
0:00:12.5]} 49. axb5 {[%clk 0:00:06.5]} 49... Kd4 {[%clk 0:00:13.3]} 50. b6
{[%clk 0:00:06.6]} 50... Nc5 {[%clk 0:00:11.4]} 51. Ka3 {[%clk 0:00:05.7]} 51...
Kc4 {[%clk 0:00:11.6]} 52. Rc1 {[%clk 0:00:05]} 52... Nb7 {[%clk 0:00:12.1]} 53.
Ka4 {[%clk 0:00:04.7]} 53... Nc5+ {[%clk 0:00:11.5]} 54. Ka5 {[%clk 0:00:05]}
54... Kd3 {[%clk 0:00:07.9]} 55. Kb4 {[%clk 0:00:04.7]} 55... Na6+ {[%clk
0:00:06.2]} 56. Kb5 {[%clk 0:00:03.7]} 56... Nb8 {[%clk 0:00:06.8]} 57. Kb4
{[%clk 0:00:03.2]} 57... c2 {[%clk 0:00:06.3]} 58. Kb3 {[%clk 0:00:03.2]} 58...
Nc6 {[%clk 0:00:07]} 59. Rxc2 {[%clk 0:00:03.6]} 59... Nd4+ {[%clk 0:00:07.4]}
60. Kb2 {[%clk 0:00:03.4]} 60... Nxc2 {[%clk 0:00:07.5]} 61. b7 {[%clk 0:00:04]}
61... Ne3 {[%clk 0:00:07]} 62. b8=Q {[%clk 0:00:04.9]} 62... Ke2 {[%clk
0:00:07.1]} 63. Qe8 {[%clk 0:00:04.3]} 63... Kf2 {[%clk 0:00:07.2]} 64. Qxg6
{[%clk 0:00:04.5]} 64... f4 {[%clk 0:00:07.8]} 65. Qg5 {[%clk 0:00:05]} 65...
Nxg2 {[%clk 0:00:08.1]} 66. h4 {[%clk 0:00:05.3]} 66... f3 {[%clk 0:00:08.7]}
67. h5 {[%clk 0:00:05.9]} 67... Ke2 {[%clk 0:00:09.1]} 68. h6 {[%clk 0:00:06.2]}
68... Ne3 {[%clk 0:00:09.7]} 69. h7 {[%clk 0:00:05.5]} 69... f2 {[%clk
0:00:10.6]} 70. Qf6 {[%clk 0:00:05.6]} 70... Nd1+ {[%clk 0:00:10.7]} 71. Kb3
{[%clk 0:00:05.6]} 71... Ne3 {[%clk 0:00:11.6]} 72. Qxf2+ {[%clk 0:00:05.8]}
72... Kxf2 {[%clk 0:00:11.9]} 73. h8=Q {[%clk 0:00:06.1]} 73... Kf3 {[%clk
0:00:12.2]} 74. Kc3 {[%clk 0:00:06.5]} 74... Ke4 {[%clk 0:00:13.1]} 75. Qe8+
{[%clk 0:00:06.3]} 75... Kf3 {[%clk 0:00:13.5]} 76. Kd3 {[%clk 0:00:07.2]} 76...
Ng4 {[%clk 0:00:13.5]} 77. Qf8+ {[%clk 0:00:07.3]} 77... Kg3 {[%clk 0:00:14.2]}
78. Ke2 {[%clk 0:00:07.2]} 78... Kh4 {[%clk 0:00:14.2]} 79. Qf4 {[%clk
0:00:07.2]} 79... Kh5 {[%clk 0:00:14.3]} 80. Kf3 {[%clk 0:00:07.6]} 80... Nh6
{[%clk 0:00:14.7]} 81. Qe5+ {[%clk 0:00:07.6]} 81... Kg6 {[%clk 0:00:14.9]} 82.
Kf4 {[%clk 0:00:08.1]} 82... Nf7 {[%clk 0:00:15.6]} 83. Qe6+ {[%clk 0:00:08.2]}
83... Kg7 {[%clk 0:00:16.5]} 84. Kf5 {[%clk 0:00:08.2]} 84... Nh6+ {[%clk
0:00:16.9]} 85. Kg5 {[%clk 0:00:08.2]} 85... Nf7+ {[%clk 0:00:17.8]} 86. Kh5
{[%clk 0:00:08.7]} 86... Kg8 {[%clk 0:00:16.9]} 87. Kg6 {[%clk 0:00:08.1]} 87...
Kh8 {[%clk 0:00:17.5]} 88. Kxf7 {[%clk 0:00:08.4]} 88... Kh7 {[%clk 0:00:17.7]}
89. Qh3# {[%clk 0:00:08.7]} 1-0

[Event "*** SCC Grand Prix: Titled Tuesday Blitz"]
[Site "Chess.com"]
[Date "2020.06.09"]
[Round "4"]
[White "ChessWarrior7197"]
[Black "praveenb2002"]
[Result "1/2-1/2"]
[WhiteElo "2938"]
[BlackElo "2762"]
[TimeControl "180+1"]
[EndTime "9:41:20 PDT"]
[Termination "Game drawn by stalemate"]

1. e4 {[%clk 0:03:00.9]} 1... c6 {[%clk 0:02:58.6]} 2. d4 {[%clk 0:03:00.4]}
2... d5 {[%clk 0:02:59.4]} 3. e5 {[%clk 0:03:00.7]} 3... Bf5 {[%clk 0:02:59.2]}
4. Nf3 {[%clk 0:03:00.5]} 4... e6 {[%clk 0:02:59.2]} 5. Be2 {[%clk 0:03:00.3]}
5... c5 {[%clk 0:02:59.5]} 6. Be3 {[%clk 0:02:59.7]} 6... cxd4 {[%clk
0:02:57.4]} 7. Nxd4 {[%clk 0:03:00.6]} 7... Ne7 {[%clk 0:02:57.9]} 8. O-O {[%clk
0:03:00.6]} 8... Nbc6 {[%clk 0:02:57.1]} 9. Bb5 {[%clk 0:03:00]} 9... a6 {[%clk
0:02:49.7]} 10. Bxc6+ {[%clk 0:02:58.7]} 10... bxc6 {[%clk 0:02:50.6]} 11. c4
{[%clk 0:02:57.1]} 11... dxc4 {[%clk 0:02:51]} 12. Nxf5 {[%clk 0:02:43.5]} 12...
Qxd1 {[%clk 0:02:43.9]} 13. Rxd1 {[%clk 0:02:28.2]} 13... Nxf5 {[%clk
0:02:44.1]} 14. Nd2 {[%clk 0:02:29.1]} 14... Nxe3 {[%clk 0:02:37]} 15. fxe3
{[%clk 0:02:30]} 15... c3 {[%clk 0:02:37.5]} 16. bxc3 {[%clk 0:02:30.2]} 16...
O-O-O {[%clk 0:02:37.2]} 17. Ne4 {[%clk 0:02:27.1]} 17... Rd5 {[%clk 0:02:04.1]}
18. Rxd5 {[%clk 0:02:02.3]} 18... cxd5 {[%clk 0:01:59.4]} 19. Ng5 {[%clk
0:02:00.8]} 19... Bc5 {[%clk 0:01:59.5]} 20. Re1 {[%clk 0:01:58.4]} 20... h6
{[%clk 0:01:46.2]} 21. Nf3 {[%clk 0:01:48.3]} 21... Kc7 {[%clk 0:01:44.3]} 22.
Nd4 {[%clk 0:01:47.3]} 22... Kd7 {[%clk 0:01:30.6]} 23. Rf1 {[%clk 0:01:43.3]}
23... Rf8 {[%clk 0:01:30.1]} 24. g3 {[%clk 0:01:14.1]} 24... f6 {[%clk
0:01:29.1]} 25. exf6 {[%clk 0:01:11.5]} 25... Rxf6 {[%clk 0:01:19.6]} 26. Rxf6
{[%clk 0:01:00.3]} 26... gxf6 {[%clk 0:01:20.5]} 27. Kg2 {[%clk 0:01:00.7]}
27... e5 {[%clk 0:00:58.5]} 28. Nf5 {[%clk 0:00:56.1]} 28... Ke6 {[%clk
0:00:58.7]} 29. g4 {[%clk 0:00:54.3]} 29... Bf8 {[%clk 0:00:57.8]} 30. Kf3
{[%clk 0:00:48.2]} 30... h5 {[%clk 0:00:50.8]} 31. h4 {[%clk 0:00:37]} 31...
hxg4+ {[%clk 0:00:20.7]} 32. Kxg4 {[%clk 0:00:37.9]} 32... Kf7 {[%clk
0:00:21.3]} 33. h5 {[%clk 0:00:36.5]} 33... Ba3 {[%clk 0:00:18.9]} 34. Kf3
{[%clk 0:00:25.6]} 34... Bb2 {[%clk 0:00:18.3]} 35. h6 {[%clk 0:00:16.1]} 35...
Kg6 {[%clk 0:00:14.9]} 36. Ne7+ {[%clk 0:00:12.7]} 36... Kxh6 {[%clk 0:00:15.1]}
37. Nxd5 {[%clk 0:00:13.6]} 37... f5 {[%clk 0:00:12.7]} 38. c4 {[%clk
0:00:13.6]} 38... Ba3 {[%clk 0:00:11.5]} 39. Nc7 {[%clk 0:00:13.5]} 39... a5
{[%clk 0:00:10]} 40. Na6 {[%clk 0:00:13.1]} 40... Kg6 {[%clk 0:00:09.3]} 41. c5
{[%clk 0:00:13.1]} 41... Kf6 {[%clk 0:00:09.8]} 42. c6 {[%clk 0:00:11.2]} 42...
Ke6 {[%clk 0:00:10.1]} 43. Nc7+ {[%clk 0:00:11.7]} 43... Ke7 {[%clk 0:00:09.3]}
44. Nb5 {[%clk 0:00:11]} 44... Bc5 {[%clk 0:00:07.8]} 45. e4 {[%clk 0:00:10.1]}
45... f4 {[%clk 0:00:07.6]} 46. Kg4 {[%clk 0:00:10.1]} 46... Bb6 {[%clk
0:00:06.4]} 47. a4 {[%clk 0:00:08.9]} 47... Bc5 {[%clk 0:00:06.7]} 48. Kf3
{[%clk 0:00:08]} 48... Bb6 {[%clk 0:00:06.3]} 49. Na3 {[%clk 0:00:07.3]} 49...
Kd6 {[%clk 0:00:06.1]} 50. Nc4+ {[%clk 0:00:07.1]} 50... Kxc6 {[%clk 0:00:06.6]}
51. Nxe5+ {[%clk 0:00:07.6]} 51... Kc7 {[%clk 0:00:06.4]} 52. Kxf4 {[%clk
0:00:07.4]} 52... Bc5 {[%clk 0:00:06.2]} 53. Nc4 {[%clk 0:00:07.2]} 53... Bb4
{[%clk 0:00:06.7]} 54. e5 {[%clk 0:00:07.2]} 54... Kc6 {[%clk 0:00:06.9]} 55.
Ke4 {[%clk 0:00:07.1]} 55... Kc5 {[%clk 0:00:06.6]} 56. Nd6 {[%clk 0:00:06.5]}
56... Kc6 {[%clk 0:00:06.5]} 57. Nf5 {[%clk 0:00:05.7]} 57... Bf8 {[%clk
0:00:05.7]} 58. Kd4 {[%clk 0:00:04.5]} 58... Bc5+ {[%clk 0:00:06]} 59. Kc4
{[%clk 0:00:04.4]} 59... Bb4 {[%clk 0:00:06.5]} 60. e6 {[%clk 0:00:04.5]} 60...
Ba3 {[%clk 0:00:06.6]} 61. Nd4+ {[%clk 0:00:02.3]} 61... Kb6 {[%clk 0:00:06.9]}
62. Nb5 {[%clk 0:00:03.2]} 62... Bb4 {[%clk 0:00:06.7]} 63. Kd5 {[%clk
0:00:04.1]} 63... Be7 {[%clk 0:00:06]} 64. Nd6 {[%clk 0:00:05]} 64... Kc7 {[%clk
0:00:06.1]} 65. Nf5 {[%clk 0:00:05.9]} 65... Bb4 {[%clk 0:00:05.6]} 66. Kc4
{[%clk 0:00:06.1]} 66... Kc6 {[%clk 0:00:06]} 67. Nd4+ {[%clk 0:00:05.9]} 67...
Kd6 {[%clk 0:00:04.6]} 68. Kb5 {[%clk 0:00:06.8]} 68... Bc3 {[%clk 0:00:03.8]}
69. Ne2 {[%clk 0:00:05.1]} 69... Bb4 {[%clk 0:00:03.7]} 70. Nf4 {[%clk
0:00:04.7]} 70... Bd2 {[%clk 0:00:03.8]} 71. Nd3 {[%clk 0:00:03]} 71... Kxe6
{[%clk 0:00:04.3]} 72. Nc5+ {[%clk 0:00:03.9]} 72... Kd5 {[%clk 0:00:04.4]} 73.
Nb3 {[%clk 0:00:03.7]} 73... Bc3 {[%clk 0:00:04.8]} 74. Nxa5 {[%clk 0:00:03.5]}
74... Bxa5 {[%clk 0:00:05.7]} 75. Kxa5 {[%clk 0:00:04.4]} 75... Kc5 {[%clk
0:00:06.4]} 76. Ka6 {[%clk 0:00:05.3]} 76... Kc6 {[%clk 0:00:07]} 77. a5 {[%clk
0:00:06.2]} 77... Kc7 {[%clk 0:00:07.4]} 78. Ka7 {[%clk 0:00:07.1]} 78... Kc8
{[%clk 0:00:07.9]} 79. Kb6 {[%clk 0:00:08]} 79... Kb8 {[%clk 0:00:08.4]} 80. a6
{[%clk 0:00:08.9]} 80... Ka8 {[%clk 0:00:09.3]} 81. a7 {[%clk 0:00:09.8]}
1/2-1/2